bitfinex/quotes_ETHUSD_20260120
["timestamp","ask_amount","ask_price","bid_price","bid_amount"]
[1768951430357,0.90149718,2944.5,2942.6,0.9455386]
[1768951430556,0.001,2944.5,2942.8,0.9455386]
[1768951431469,2.04e-06,2944.5,2942.8,0.9455386]
[1768951431649,2.04e-06,2944.5,2943.0,0.9455386]
[1768951433268,2.04e-06,2944.5,2943.1,3.39777785]
[1768951433569,2.04e-06,2944.5,2943.2,0.9455386]
[1768951435373,0.90049718,2944.4,2942.8,0.9455386]
[1768951436168,0.90049718,2944.4,2942.9,0.9455386]
[1768951436376,1.66979508,2944.3,2942.9,0.9455386]
[1768951436593,0.90049718,2944.2,2942.7,0.522]
[1768951436877,0.90049718,2944.0,2942.5,0.9455386]
[1768951437576,0.90049718,2943.9,2942.5,4.34400892]
[1768951437779,0.18009944,2943.8,2942.6,0.43440089]
[1768951438148,1.08059662,2943.8,2942.6,0.43440089]
[1768951438375,1.08059662,2943.8,2942.5,0.9455386]
[1768951438566,1.08059662,2943.8,2942.5,4.34396882]
[1768951438767,1.08059662,2943.8,2942.5,0.9455386]
[1768951438963,1.08059662,2943.8,2942.2,0.9455386]
[1768951439551,0.90049718,2943.6,2942.2,0.9455386]
[1768951439890,0.90049718,2943.6,2941.9,3.39911394]
[1768951439891,0.90049718,2943.3,2941.9,0.9455386]
[1768951440173,0.90049718,2943.1,2941.9,0.9455386]
[1768951440955,0.90049718,2943.1,2941.8,0.002]
[1768951441477,0.527,2943.2,2941.9,0.9455386]
[1768951441684,3.92470547,2943.2,2941.9,0.9455386]
[1768951441885,0.39247055,2943.1,2941.9,0.9455386]
[1768951442090,0.90049718,2943.0,2941.8,0.002]
[1768951443058,0.90049718,2943.0,2942.1,0.002]
[1768951445065,0.90049718,2943.0,2941.8,0.002]
[1768951445066,0.90049718,2942.6,2941.8,0.002]
[1768951447184,0.90049718,2942.4,2941.0,0.9455386]
[1768951447385,0.76974385,2942.3,2941.1,0.43458169]
[1768951448678,1.67024103,2942.3,2941.1,0.43458169]
[1768951448857,0.90049718,2942.2,2941.0,0.9455386]
[1768951449062,0.90049718,2941.7,2940.7,0.002]
[1768951449299,0.90049718,2941.7,2940.4,0.9475386]
[1768951449300,0.90049718,2941.5,2940.4,0.002]
[1768951449461,0.527,2941.6,2939.5,0.9455386]
[1768951449462,0.90049718,2941.1,2939.5,0.9455386]
[1768951449666,10.48865503,2941.4,2939.5,0.9455386]
[1768951449667,10.48865503,2940.9,2939.5,0.9455386]
[1768951449867,2.47636268,2940.8,2939.5,0.9455386]
[1768951450063,0.90049718,2940.7,2939.2,0.9455386]
[1768951451280,1.0488655,2940.8,2939.3,0.9455386]
[1768951451482,0.527,2940.8,2939.3,0.9455386]
[1768951452082,3.63345855,2941.3,2939.3,0.9455386]
[1768951452398,0.527,2941.2,2939.3,0.9455386]
[1768951452593,1.42749718,2941.2,2939.3,0.9455386]
[1768951453803,3.4000884,2941.1,2939.5,0.9455386]
[1768951454003,3.4000884,2941.1,2939.7,0.9455386]
[1768951454004,4.22283578,2941.1,2939.7,0.9455386]
[1768951454202,0.82274738,2941.1,2939.7,0.9455386]
[1768951454665,11.38915221,2941.6,2939.7,0.9455386]
[1768951454996,0.527,2941.5,2939.7,0.9455386]
[1768951455702,3.92666594,2941.5,2939.9,0.9261649]
[1768951455872,3.92666594,2941.5,2939.7,0.9261649]
[1768951455873,0.99925823,2941.3,2939.7,0.9261649]
[1768951456073,0.99925823,2941.3,2939.8,0.9261649]
[1768951457702,3.3999728,2941.2,2939.8,0.9261649]
[1768951457994,18.86731923,2941.1,2939.8,0.9261649]
[1768951458197,0.99925823,2941.0,2939.8,0.9261649]
[1768951458398,1.77917861,2941.0,2939.8,0.9261649]
[1768951459909,5.17943191,2941.0,2939.8,0.9261649]
[1768951461907,5.17943191,2941.0,2939.5,0.002]
[1768951461908,4.39969348,2940.8,2939.5,0.002]
[1768951462074,4.92669348,2940.8,2939.5,0.9281649]
[1768951462274,0.49266935,2940.7,2939.5,0.9281649]
[1768951463306,0.527,2940.8,2939.5,0.9281649]
[1768951464000,0.527,2940.8,2939.6,0.9261649]
[1768951465397,1.52625823,2941.1,2939.6,0.9261649]
[1768951465588,4.9263679,2941.1,2939.6,0.9261649]
[1768951465784,3.92710967,2941.1,2939.6,0.9261649]
[1768951465990,1.3919692,2941.0,2939.8,0.9261649]
[1768951466716,4.79220382,2941.0,2939.8,0.9261649]
[1768951467402,3.79294559,2941.0,2939.8,0.9261649]
[1768951467708,0.39271097,2941.0,2939.9,0.9261649]
[1768951468513,0.39271097,2941.0,2939.9,1.43627012]
[1768951468514,0.99925823,2940.8,2939.9,1.43627012]
[1768951468711,0.99925823,2940.8,2939.9,0.9261649]
[1768951468904,1.00025823,2940.8,2939.9,0.9261649]
[1768951469704,1.00025823,2940.8,2939.7,0.9281649]
[1768951470813,4.40070492,2940.8,2939.7,0.9281649]
[1768951471006,0.48327857,2940.7,2939.7,0.9281649]
[1768951471686,0.99925823,2940.5,2939.7,0.002]
[1768951471895,0.99925823,2940.4,2939.5,0.002]
[1768951472100,0.99925823,2939.9,2938.8,0.9281649]
[1768951472286,1.65225823,2939.8,2938.8,0.9281649]
[1768951472894,10.48865503,2940.0,2938.9,0.9261649]
[1768951472895,0.528,2940.0,2938.9,0.9261649]
[1768951473299,0.24136188,2940.0,2938.9,0.9261649]
[1768951474404,6.33,2940.5,2938.9,0.9261649]
[1768951474615,6.33,2940.5,2939.1,0.9261649]
[1768951474820,3.40066653,2940.6,2939.2,0.9261649]
[1768951475007,3.40066653,2940.6,2939.4,0.9261649]
[1768951475405,6.858,2940.7,2939.4,0.9261649]
[1768951475717,9.73058936,2940.7,2939.4,0.9261649]
[1768951476017,10.25858936,2940.7,2939.4,0.9261649]
[1768951476417,0.528,2940.7,2939.4,0.9261649]
[1768951476603,0.001,2940.8,2939.4,0.9261649]
[1768951477516,0.001,2940.8,2939.6,0.9261649]
[1768951477693,0.001,2940.8,2939.8,0.9261649]
[1768951480315,0.001,2940.8,2939.8,4.32774303]
[1768951480521,0.001,2940.8,2939.9,0.9261649]
[1768951480721,0.001,2940.8,2940.1,0.9261649]
[1768951481121,0.001,2940.6,2940.1,0.9261649]
[1768951481623,10.73001691,2941.5,2940.0,0.002]
[1768951481624,16.53,2941.6,2940.0,0.002]
[1768951481801,0.24236188,2941.5,2940.3,0.9261649]
[1768951481991,0.24236188,2941.5,2940.4,0.522]
[1768951482713,0.24236188,2941.5,2940.3,0.9261649]
[1768951482916,0.24236188,2941.5,2940.2,1.4481649]
[1768951483222,0.43432169,2941.4,2940.3,0.9261649]
[1768951483638,3.3998572,2941.3,2940.3,0.9261649]
[1768951484729,7.04207628,2941.3,2940.3,0.9261649]
[1768951485232,0.24236188,2941.2,2940.3,0.9261649]
[1768951485403,0.24236188,2941.2,2940.0,0.96919453]
[1768951485609,3.40020401,2941.0,2940.0,0.96919453]
[1768951485794,3.64256589,2941.0,2940.0,0.96919453]
[1768951487532,0.24236188,2941.2,2940.0,0.96919453]
[1768951487697,3.64245028,2941.1,2940.0,0.96919453]
[1768951490725,3.64247518,2941.1,2940.0,0.96919453]
[1768951490948,0.19195981,2941.4,2940.0,0.96919453]
[1768951490949,0.528,2941.2,2940.1,0.96719453]
[1768951491735,6.33,2941.8,2940.1,0.96719453]
[1768951491908,10.328,2941.9,2940.1,0.96719453]
[1768951491909,6.33,2941.9,2940.1,0.96719453]
[1768951492097,3.39907334,2942.0,2940.5,0.96719453]
[1768951492302,3.39907334,2942.0,2940.7,0.96719453]
[1768951493136,6.331,2942.1,2940.7,0.96719453]
[1768951493137,0.001,2942.1,2940.7,0.96719453]
[1768951493721,0.001,2941.8,2940.7,0.96719453]
[1768951494104,0.001,2941.8,2940.6,0.522]
[1768951494105,0.001,2941.8,2940.9,0.96719453]
[1768951494303,0.001,2941.8,2941.1,0.96719453]
[1768951494834,0.001,2941.8,2941.2,0.522]
[1768951495029,0.001,2941.8,2941.3,0.96719453]
[1768951495607,0.001,2942.1,2941.4,0.96719453]
[1768951498941,0.001,2942.1,2941.5,0.522]
[1768951499116,0.001,2942.1,2941.6,0.96719453]
[1768951500819,0.001,2942.1,2941.6,1.48919453]
[1768951501020,0.001,2942.1,2941.2,3.39997224]
[1768951501021,0.24436188,2942.1,2941.0,1.74400103]
[1768951501369,0.24436188,2942.1,2941.0,1.48919453]
[1768951502116,0.24436188,2942.1,2941.1,0.96719453]
[1768951502518,0.001,2942.1,2941.1,0.96719453]
[1768951503646,0.24336188,2942.0,2940.8,0.522]
[1768951503802,0.24336188,2941.8,2940.8,1.48919453]
[1768951504216,0.24336188,2941.8,2940.3,0.96719453]
[1768951504418,0.70422303,2941.9,2940.4,1.48919453]
[1768951504419,0.24336188,2941.6,2940.4,1.48919453]
[1768951504706,0.24336188,2941.6,2940.5,0.96719453]
[1768951505306,0.24336188,2941.6,2940.5,1.48919453]
[1768951505546,0.70421517,2941.5,2940.5,1.48919453]
[1768951505749,0.70421517,2941.5,2940.6,0.96719453]
[1768951506244,0.001,2941.8,2940.6,0.96719453]
[1768951506419,3.40030292,2941.8,2940.6,0.96719453]
[1768951506938,0.001,2941.8,2940.7,0.96719453]
[1768951508741,0.001,2941.8,2940.9,0.96719453]
[1768951510270,0.24436188,2941.8,2940.2,0.96719453]
[1768951510475,0.24336188,2941.6,2940.1,0.96719453]
[1768951510827,7.04261396,2941.5,2940.1,0.96719453]
[1768951511133,0.7042614,2941.4,2940.1,0.96719453]
[1768951511339,0.94762328,2941.4,2940.1,0.96719453]
[1768951511545,0.24336188,2941.3,2940.1,0.96719453]
[1768951511749,0.24336188,2941.3,2940.0,0.002]
[1768951512032,0.24336188,2941.1,2940.0,0.002]
[1768951512449,0.24336188,2941.1,2940.0,0.96919453]
[1768951512627,0.24336188,2941.1,2940.0,0.002]
[1768951512832,0.24336188,2940.9,2940.0,0.002]
[1768951513052,0.94773887,2940.8,2940.0,0.002]
[1768951514748,3.40055088,2940.7,2940.0,0.002]
[1768951515267,4.10486648,2940.8,2940.0,0.002]
[1768951515452,3.40048949,2940.8,2940.0,0.002]
[1768951515929,3.4000884,2941.1,2940.0,0.96392075]
[1768951516327,0.77136188,2941.2,2940.0,0.96392075]
[1768951516328,3.64337573,2941.2,2940.0,0.96392075]
[1768951516560,3.39986395,2941.3,2940.0,0.96392075]
[1768951517141,3.52742169,2941.7,2940.2,0.96192075]
[1768951517142,3.39948871,2941.7,2940.2,0.96192075]
[1768951517343,0.70431309,2941.6,2940.4,0.96192075]
[1768951518262,3.39948871,2941.7,2940.4,0.96192075]
[1768951518864,3.40031449,2941.8,2940.6,0.96192075]
[1768951519230,7.04299086,2941.8,2940.6,1.48392075]
[1768951519431,3.40031449,2941.8,2940.7,0.96192075]
[1768951519931,0.001,2941.8,2940.7,0.96192075]
[1768951520240,0.39381899,2941.8,2940.7,0.96192075]
[1768951521036,0.39381899,2941.8,2940.7,3.40052324]
[1768951521235,0.39381899,2941.8,2940.8,0.96192075]
[1768951522065,0.001,2941.8,2940.8,0.96192075]
[1768951523368,0.001,2941.8,2940.9,0.96192075]
[1768951524854,0.001,2941.8,2940.9,3.40028443]
[1768951525031,0.001,2941.8,2941.0,0.96192075]
[1768951526262,0.001,2941.8,2941.2,0.96192075]
[1768951526964,0.001,2941.8,2941.0,1.48392075]
[1768951527784,0.24436188,2941.8,2940.7,0.96192075]
[1768951528262,0.24436188,2941.8,2940.8,0.96192075]
[1768951528466,0.24336188,2941.7,2940.5,0.96192075]
[1768951529780,0.24336188,2941.7,2941.0,0.002]
[1768951529935,0.12,2941.2,2940.8,0.002]
[1768951530739,0.47198119,2941.2,2940.8,0.002]
[1768951530938,0.47198119,2941.2,2940.4,0.96192075]
[1768951531137,0.47198119,2941.2,2940.2,0.002]
[1768951531138,0.24336188,2941.1,2940.2,0.002]
[1768951532062,0.24336188,2941.1,2940.2,0.96392075]
[1768951532268,0.12,2941.2,2940.2,0.96392075]
[1768951532474,0.04319352,2941.2,2940.4,0.96192075]
[1768951532688,0.04319352,2941.2,2940.5,0.96192075]
[1768951536415,0.04319352,2941.2,2940.6,0.96192075]
[1768951539470,0.04319352,2941.2,2940.4,0.96192075]
[1768951541765,3.44317488,2941.2,2940.4,0.96192075]
[1768951541963,3.68653676,2941.2,2940.4,0.96192075]
[1768951542174,0.24336188,2941.1,2940.4,0.96192075]
[1768951542476,0.36865368,2941.0,2940.5,0.002]
[1768951544481,0.24336188,2941.1,2940.5,0.002]
[1768951548277,0.24336188,2941.1,2940.5,0.97691728]
[1768951548881,3.64345496,2941.1,2940.5,0.97691728]
[1768951549087,3.64345496,2941.1,2940.5,0.002]
[1768951549281,3.64345496,2941.1,2940.2,0.002]
[1768951549282,0.24336188,2941.0,2940.2,0.002]
[1768951549584,0.36866485,2941.0,2940.2,0.97691728]
[1768951550094,0.24136188,2940.9,2940.2,0.002]
[1768951550849,0.24136188,2940.7,2940.2,0.002]
[1768951551916,0.24136188,2940.7,2940.0,0.92719352]
[1768951552066,0.24136188,2940.7,2939.6,0.002]
[1768951552067,0.24136188,2940.2,2939.6,0.002]
[1768951552396,0.24136188,2940.2,2939.4,0.002]
[1768951553364,3.64260673,2940.1,2939.4,0.002]
[1768951554398,3.64260673,2940.1,2939.6,0.002]
[1768951554563,0.36426067,2940.0,2939.4,0.002]
[1768951554768,0.60662255,2940.0,2939.4,0.002]
[1768951554968,0.24136188,2939.9,2938.9,0.97491728]
[1768951555284,0.36526067,2940.0,2938.9,0.97491728]
[1768951555674,3.76673266,2940.0,2938.9,0.97491728]
[1768951555880,0.66893515,2939.9,2938.9,0.97491728]
[1768951557400,0.42957327,2939.9,2938.9,0.97491728]
[1768951557967,0.23936188,2939.9,2938.9,0.97491728]
[1768951558498,0.001,2940.0,2938.9,0.97491728]
[1768951558668,0.001,2940.0,2938.8,0.002]
[1768951558669,0.23936188,2939.9,2938.8,0.002]
[1768951558868,0.23936188,2939.7,2938.8,0.002]
[1768951559067,0.23936188,2939.7,2938.7,0.97491728]
[1768951559068,0.23936188,2939.6,2938.7,0.97491728]
[1768951559299,0.23936188,2939.6,2938.6,0.002]
[1768951559300,0.23936188,2939.6,2938.6,0.97691728]
[1768951561305,0.23936188,2939.6,2938.7,0.97491728]
[1768951561807,3.64122557,2939.6,2938.7,0.97491728]
[1768951562104,0.23936188,2939.5,2938.7,0.97491728]
[1768951564026,0.23936188,2939.4,2938.7,0.97491728]
[1768951564425,0.23936188,2939.4,2938.6,0.002]
[1768951564611,0.23936188,2939.2,2938.5,0.002]
[1768951564811,6.80480418,2939.1,2938.3,0.002]
[1768951565121,6.80480418,2939.1,2938.2,0.002]
[1768951565122,0.23936188,2939.0,2938.2,0.002]
[1768951566908,0.23936188,2938.9,2938.2,0.002]
[1768951567311,0.23936188,2938.9,2938.2,8.16e-06]
[1768951567512,0.94380164,2938.8,2938.2,8.16e-06]
[1768951568540,0.23936188,2938.7,2938.2,8.16e-06]
[1768951569503,3.64223571,2938.7,2938.2,8.16e-06]
[1768951570523,0.23936188,2938.6,2938.2,8.16e-06]
[1768951570832,3.64190749,2939.0,2938.2,0.97492544]
[1768951571034,6.33,2939.1,2938.2,0.97492544]
[1768951571238,3.40191139,2939.6,2938.4,0.97491728]
[1768951571239,0.23936188,2939.6,2938.4,0.97491728]
[1768951571413,6.80345265,2939.7,2938.4,0.97491728]
[1768951571608,0.23936188,2939.6,2938.4,0.97491728]
[1768951571934,0.23936188,2939.6,2938.5,0.97491728]
[1768951572099,0.70428145,2939.5,2938.5,0.97491728]
[1768951572301,0.94364333,2939.5,2938.5,0.97491728]
[1768951572917,0.70428145,2939.5,2938.5,0.97491728]
[1768951573128,3.64106953,2939.7,2938.5,0.97491728]
[1768951573433,0.23936188,2939.7,2938.5,0.97491728]
[1768951574233,6.33,2939.8,2938.6,0.97491728]
[1768951574440,9.73162504,2939.8,2938.6,0.97491728]
[1768951574601,9.73162504,2939.8,2938.8,0.97491728]
[1768951574602,11.43818257,2939.8,2938.8,0.97491728]
[1768951574801,11.67754445,2939.8,2938.8,0.97491728]
[1768951575738,8.03655753,2939.8,2938.8,0.97491728]
[1768951575940,6.33,2939.8,2938.9,0.99665692]
[1768951576140,3.93237069,2940.0,2938.9,0.99665692]
[1768951576369,3.93241064,2940.0,2938.9,0.99665692]
[1768951576583,3.93241064,2940.0,2939.1,0.99665692]
[1768951576584,3.93236814,2940.0,2939.1,0.99665692]
[1768951576871,0.23936188,2939.9,2939.1,0.99665692]
[1768951577973,3.40159194,2939.8,2939.1,0.72432065]
[1768951578182,4.33319755,2939.8,2938.8,0.523]
[1768951578476,4.33319755,2939.8,2938.9,0.99665692]
[1768951579549,0.001,2939.6,2938.9,0.99665692]
[1768951580959,0.93160561,2939.5,2938.7,0.99665692]
[1768951581161,0.001,2939.6,2938.7,0.99665692]
[1768951582493,0.001,2939.6,2938.8,0.99665692]
[1768951582811,4.33444389,2939.6,2938.8,0.99665692]
[1768951583097,0.93160561,2939.5,2938.8,0.99665692]
[1768951586902,4.33355816,2939.5,2938.8,0.99665692]
[1768951587117,4.33355816,2939.5,2938.2,0.99666508]
[1768951587118,0.93160561,2939.3,2938.2,0.99666508]
[1768951587275,0.93160561,2939.3,2938.3,0.99665692]
[1768951589887,0.93160561,2939.2,2938.3,0.99665692]
[1768951591033,0.93160561,2939.1,2938.3,0.99665692]
[1768951591329,0.93160561,2939.1,2938.2,8.16e-06]
[1768951591330,0.93160561,2939.0,2938.2,8.16e-06]
[1768951591511,0.93160561,2938.9,2938.2,8.16e-06]
[1768951591892,1.36499814,2939.0,2938.2,8.16e-06]
[1768951592605,1.36499814,2939.0,2938.5,0.002]
[1768951592606,0.93160561,2938.9,2938.5,0.002]
[1768951592804,0.93160561,2938.9,2938.5,0.00097915]
[1768951593614,0.47675175,2938.8,2938.5,0.00097915]
[1768951593919,0.93160561,2938.7,2938.5,0.00097915]
[1768951594149,0.93160561,2938.7,2938.3,0.002]
[1768951594436,0.93160561,2938.7,2938.2,8.16e-06]
[1768951594730,0.93160561,2938.7,2938.1,0.002]
[1768951594731,0.93160561,2938.6,2938.1,0.002]
[1768951594896,0.93160561,2938.6,2937.7,0.99665692]
[1768951595097,0.93160561,2938.4,2937.7,0.99665692]
[1768951595312,1.36507585,2938.3,2937.7,0.99665692]
[1768951595833,0.93160561,2938.2,2937.5,0.002]
[1768951596193,0.93160561,2938.1,2937.1,0.99865692]
[1768951596804,0.93160561,2938.1,2936.6,0.002]
[1768951597006,0.93160561,2937.9,2936.6,0.002]
[1768951597208,0.93160561,2937.6,2936.6,0.002]
[1768951597408,3.4040433,2937.7,2936.6,0.002]
[1768951597409,0.93160561,2937.5,2936.6,0.002]
[1768951597610,0.93160561,2937.3,2936.2,0.99665692]
[1768951597823,0.93160561,2937.3,2936.0,0.99665692]
[1768951598024,0.93160561,2937.1,2936.0,0.99665692]
[1768951598226,0.2335703,2937.2,2935.7,0.002]
[1768951598227,0.93160561,2936.9,2935.7,0.002]
[1768951598425,0.93160561,2936.9,2935.7,1.39199827]
[1768951598626,0.93160561,2936.9,2935.7,0.99865692]
[1768951599702,0.93160561,2936.7,2935.7,0.99865692]
[1768951600537,0.2335703,2937.2,2935.7,0.99865692]
[1768951600538,0.93160561,2937.2,2935.7,0.99865692]
[1768951600837,14.60058681,2937.3,2935.9,0.99665692]
[1768951601037,0.93160561,2937.2,2935.9,0.99665692]
[1768951601205,0.93160561,2937.0,2935.9,0.99665692]
[1768951601609,3.40495079,2936.9,2935.9,0.99665692]
[1768951601842,0.531,2936.8,2935.9,0.99665692]
[1768951602042,1.46260561,2936.8,2935.9,0.99665692]
[1768951602638,0.93160561,2936.7,2935.7,0.99865692]
[1768951603006,0.93160561,2936.7,2935.7,0.002]
[1768951603301,0.93160561,2936.5,2935.7,0.002]
[1768951603501,0.93160561,2936.3,2935.5,0.002]
[1768951603811,0.93160561,2936.2,2935.5,0.002]
[1768951604214,0.531,2936.3,2935.5,0.002]
[1768951604636,0.531,2936.3,2935.5,0.97767001]
[1768951605342,3.40542143,2936.5,2935.5,0.97767001]
[1768951605558,0.34054214,2936.4,2935.5,0.97767001]
[1768951605726,0.34054214,2936.4,2936.1,0.002]
[1768951605926,0.34054214,2936.4,2935.5,0.97767001]
[1768951606352,0.34054214,2936.4,2935.9,0.002]
[1768951606658,4.36652109,2936.6,2935.9,0.002]
[1768951606845,7.77184197,2936.6,2935.9,0.002]
[1768951607051,0.96120021,2936.5,2935.9,0.002]
[1768951607349,0.96120021,2936.5,2935.5,0.97767001]
[1768951607655,0.96120021,2936.5,2935.5,0.002]
[1768951607850,0.96120021,2936.2,2935.5,0.002]
[1768951609936,3.40581692,2936.2,2935.5,0.002]
[1768951610138,3.40581692,2936.2,2934.7,0.002]
[1768951610139,0.96120021,2935.7,2934.7,0.002]
[1768951610324,0.531,2935.6,2934.7,0.9834737]
[1768951611965,3.93751785,2935.6,2934.7,0.9834737]
[1768951612166,1.36150037,2935.6,2934.7,0.9834737]
[1768951612457,4.76797715,2935.6,2934.7,0.9834737]
[1768951612757,1.36150037,2935.6,2934.7,0.9834737]
[1768951613341,0.531,2935.9,2934.8,0.9814737]
[1768951613541,0.531,2936.0,2934.8,0.9814737]
[1768951614143,1.49220021,2936.0,2934.8,0.9814737]
[1768951614547,4.89823267,2936.0,2934.8,0.9814737]
[1768951614747,0.48982327,2935.9,2934.9,0.9814737]
[1768951614968,0.96120021,2936.3,2934.9,0.9814737]
[1768951615273,0.96120021,2936.3,2934.8,6.8147678]
[1768951615274,4.36685738,2936.3,2935.1,0.9814737]
[1768951615769,0.04319352,2936.2,2935.1,0.9814737]
[1768951616273,0.04319352,2936.2,2935.2,0.9814737]
[1768951618264,0.531,2936.8,2935.4,0.9814737]
[1768951618464,0.001,2936.9,2935.7,0.9814737]
[1768951618666,0.001,2936.9,2935.6,0.9814737]
[1768951618667,0.96220021,2936.9,2935.6,0.9814737]
[1768951618852,0.96120021,2936.8,2935.6,0.9814737]
[1768951619395,0.001,2936.9,2935.6,0.9814737]
[1768951619593,0.001,2936.9,2935.8,0.9814737]
[1768951620143,0.001,2936.9,2935.9,0.9814737]
[1768951622277,0.001,2936.9,2936.0,6.8119891]
[1768951622475,0.001,2936.9,2936.2,0.9814737]
[1768951622670,0.128,2937.9,2936.2,0.9814737]
[1768951622876,4.36510789,2937.8,2936.2,0.9814737]
[1768951623099,0.43651079,2937.7,2936.2,0.9814737]
[1768951623302,0.96120021,2938.4,2936.2,0.9814737]
[1768951623599,0.96120021,2938.2,2936.2,0.9814737]
[1768951624243,0.531,2938.3,2936.2,0.9814737]
[1768951624582,3.93439425,2938.3,2936.4,0.9814737]
[1768951624912,0.96120021,2938.4,2936.4,0.9814737]
[1768951625115,0.43643296,2938.3,2936.6,0.9814737]
[1768951625318,0.43643296,2938.3,2936.8,0.9814737]
[1768951626825,0.43643296,2938.3,2937.0,0.9814737]
[1768951627028,3.40302043,2938.6,2937.0,0.9814737]
[1768951627333,30.0,2938.4,2937.0,0.9814737]
[1768951627543,0.96120021,2938.3,2937.1,0.523]
[1768951628047,0.96120021,2938.5,2937.2,0.9814737]
[1768951628727,0.96120021,2938.4,2937.2,0.9814737]
[1768951628927,0.96120021,2938.4,2937.3,0.9814737]
[1768951629100,3.40311844,2938.5,2937.3,0.9814737]
[1768951629101,1.39763208,2938.3,2937.3,0.9814737]
[1768951629307,0.96120021,2938.2,2936.8,0.9814737]
[1768951629523,0.96120021,2938.2,2936.9,0.523]
[1768951629707,0.96120021,2938.2,2936.9,1.5044737]
[1768951630428,0.96120021,2938.2,2937.0,0.9814737]
[1768951630631,0.96120021,2938.2,2936.9,0.523]
[1768951630632,0.96120021,2938.2,2937.1,0.9814737]
[1768951630828,0.19296321,2938.2,2937.1,0.9814737]
[1768951631029,0.19296321,2938.2,2937.2,0.9814737]
[1768951631333,0.001,2938.3,2937.2,0.9814737]
[1768951632717,0.001,2938.3,2937.3,0.9814737]
[1768951633526,0.96220021,2938.3,2937.3,0.9814737]
[1768951633912,0.001,2938.3,2937.3,0.9814737]
[1768951634817,0.001,2938.3,2937.4,3.40437121]
[1768951635144,3.40262969,2939.0,2937.7,0.93103016]
[1768951635145,0.94146708,2939.0,2937.7,0.93103016]
[1768951635349,0.001,2939.3,2937.7,0.93103016]
[1768951635350,0.94146708,2939.2,2937.7,0.93103016]
[1768951636728,0.12,2938.2,2937.7,0.93103016]
[1768951636927,4.34376825,2939.2,2937.8,0.93103016]
[1768951638347,0.94146708,2939.2,2937.8,0.93103016]
[1768951638544,0.94146708,2939.2,2938.0,0.93103016]
[1768951638749,0.94146708,2939.2,2938.2,0.93103016]
[1768951639327,0.94146708,2939.1,2938.2,0.93103016]
[1768951640833,0.94146708,2939.1,2938.1,0.523]
[1768951641348,0.94146708,2938.9,2938.1,0.523]
[1768951641666,1.37586557,2938.9,2938.1,0.523]
[1768951641964,0.94146708,2938.8,2938.1,0.523]
[1768951644032,0.43539849,2938.9,2938.2,0.93103016]
[1768951644033,0.001,2938.9,2938.2,0.93103016]
[1768951645843,0.001,2938.9,2938.4,0.93103016]
[1768951646045,0.001,2939.3,2938.5,0.93103016]
[1768951646355,0.001,2939.3,2938.7,0.93103016]
[1768951649065,0.94146708,2939.2,2938.4,0.43343586]
[1768951649270,0.94146708,2939.2,2938.4,1.45403016]
[1768951650582,0.94146708,2939.2,2938.4,4.85723709]
[1768951650778,0.94146708,2939.2,2938.5,0.93103016]
[1768951650979,0.001,2939.3,2938.6,0.93103016]
[1768951651880,0.94246708,2939.3,2938.5,0.82605516]
[1768951652095,0.94246708,2939.3,2938.6,0.523]
[1768951652874,0.94246708,2939.3,2938.4,0.93103016]
[1768951653098,0.94246708,2939.3,2938.5,0.523]
[1768951653299,0.94246708,2939.3,2938.4,0.93103016]
[1768951653498,0.94246708,2939.3,2938.5,0.523]
[1768951654075,0.001,2939.0,2938.5,0.523]
[1768951655281,0.001,2939.3,2938.6,0.93103016]
[1768951656214,0.001,2939.3,2938.7,0.93103016]
[1768951661881,0.94246708,2939.3,2938.5,0.93103016]
[1768951662089,0.94246708,2939.3,2938.5,1.45503016]
[1768951662317,0.94246708,2939.3,2938.5,4.85808221]
[1768951662488,0.94246708,2939.3,2938.6,0.93103016]
[1768951663087,0.94246708,2939.3,2938.6,4.33400961]
[1768951663588,0.001,2939.3,2938.7,0.93103016]
[1768951664012,0.001,2939.6,2938.8,0.93103016]
[1768951664211,0.001,2940.0,2939.0,0.93103016]
[1768951664714,0.001,2940.0,2939.2,0.93103016]
[1768951664715,0.98730529,2940.0,2939.2,0.93103016]
[1768951664904,0.001,2940.0,2939.2,0.93103016]
[1768951665109,0.001,2940.0,2939.3,0.92600685]
[1768951665303,0.001,2940.0,2939.5,0.92600685]
[1768951666511,0.99792995,2940.6,2939.7,0.92600685]
[1768951667391,0.99792995,2940.5,2939.3,4.32811235]
[1768951667620,3.40068661,2940.6,2939.3,4.32811235]
[1768951667621,0.99792995,2940.3,2939.3,4.69914694]
[1768951667820,0.99792995,2940.3,2939.5,0.92600685]
[1768951669529,0.99792995,2940.8,2939.6,0.92600685]
[1768951669935,0.99792995,2940.8,2939.4,0.92600685]
[1768951670134,0.99792995,2940.8,2939.5,0.92600685]
[1768951670344,0.99792995,2940.6,2939.5,4.32789411]
[1768951670501,0.99792995,2940.6,2939.5,0.92600685]
[1768951671004,0.99792995,2940.6,2939.5,4.3278502]
[1768951671204,0.99792995,2940.6,2939.6,0.92600685]
[1768951671844,9.96336788,2941.4,2939.5,3.40184335]
[1768951671845,0.99792995,2941.4,2940.0,0.92600685]
[1768951672050,0.99792995,2941.4,2940.2,0.92600685]
[1768951672248,0.99892995,2941.8,2940.2,0.92600685]
[1768951672462,0.99892995,2941.8,2940.1,1.66716371]
[1768951672463,0.001,2941.8,2940.5,0.92600685]
[1768951672740,10.5056302,2943.2,2940.5,0.92600685]
[1768951672741,0.99792995,2942.4,2941.0,0.92600685]
[1768951672908,0.99792995,2942.4,2941.2,0.92600685]
[1768951673114,0.99792995,2942.7,2941.2,0.92600685]
[1768951673344,0.99792995,2943.0,2941.2,0.92600685]
[1768951673514,0.99792995,2943.0,2941.4,0.92600685]
[1768951673714,0.99792995,2943.0,2941.6,0.92600685]
[1768951674745,0.99792995,2943.0,2941.7,0.523]
[1768951674940,0.99792995,2943.0,2941.3,0.92600685]
[1768951674941,0.99792995,2942.8,2941.8,0.523]
[1768951676257,0.99792995,2942.8,2941.8,1.44900685]
[1768951677025,0.99792995,2942.8,2941.9,0.92600685]
[1768951677658,0.99792995,2943.1,2941.9,0.48482614]
[1768951677956,0.99792995,2943.1,2941.9,0.92600685]
[1768951679055,0.99792995,2943.1,2942.0,0.92600685]
[1768951679448,0.001,2942.6,2942.0,0.523]
[1768951681154,0.99892995,2942.6,2941.6,0.92600685]
[1768951681362,0.99892995,2942.6,2941.7,0.523]
[1768951681562,0.99792995,2942.5,2941.7,0.523]
[1768951682257,0.99792995,2942.5,2941.4,0.92600685]
[1768951682457,0.99792995,2942.5,2941.7,0.523]